[Event "36th Belgrade Trophy 2023"]
[Site "Belgrade"]
[Date "2023.11.26"]
[Round "2.5"]
[White "Cetkovic, Miodrag"]
[Black "Blagojevic, Dragisa"]
[Result "0-1"]
[ECO "C51"]
[WhiteElo "2017"]
[BlackElo "2438"]
[Annotator "RC"]
[PlyCount "101"]
[EventDate "2023.10.23"]
[EventType "swiss"]
[EventCountry "SRB"]
[SourceTitle "playchess.com"]
[Source "ChessBase"]
[SourceQuality "1"]
[TimeControl "40/5400+30:900+30"]

1. e4 {[%emt 1:31:00]} e5 {[%emt 1:31:00]} 2. Bc4 {[%emt 0:00:30]} Nc6 {[%emt 0:00:30]} 3. Nf3 {[%emt 0:00:30]} Bc5 {[%emt 0:00:30]} 4. b4 {[%emt 0:00:00]} Bxb4 {[%emt 0:00:00]} 5. c3 {[%emt 0:00:00]} Be7 {[%emt 0:00:00]} 6. d4 {[%emt 0:00:00]} Na5 {[%emt 0:01:30]} 7. Nxe5 {[%emt 0:02:00]} Nxc4 {[%emt 0:00:30]} 8. Nxc4 {[%emt 0:00:30]} d5 {[%emt 0:00:30]} 9. exd5 {[%emt 0:00:30]} Qxd5 {[%emt 0:00:00]} 10. Ne3 {[%emt 0:00:30]} Qd7 {[%emt 0:01:00]} 11. O-O {[%emt 0:00:00]} Nf6 {[%emt 0:00:30]} 12. Re1 {[%emt 0:01:00]} O-O {[%emt 0:00:30]} 13. Nd2 {[%emt 0:00:30]} b6 {[%emt 0:00:30]} 14. Qf3 {[%emt 0:00:30]} Rb8 {[%emt 0:00:30]} 15. Ndc4 {[%emt 0:00:30]} Bb7 {[%emt 0:00:30]} 16. Qf5 {[%emt 0:00:30]} Qc6 {[%emt 0:00:30]} 17. Bb2 {[%emt 0:00:30]} Rfe8 {[%emt 0:00:30]} 18. a4 {[%emt 0:00:30]} g6 {[%emt 0:00:30]} 19. Qb5 {[%emt 0:00:30]} Qe6 {[%emt 0:00:30]} 20. Qe5 {[%emt 0:00:30]} Qd7 {[%emt 0:00:30]} 21. Qb5 {[%emt 0:00:00]} Qe6 {[%emt 0:00:30]} 22. Qe5 {[%emt 0:01:00]} Qxe5 {[%emt 0:00:30]} 23. Nxe5 {[%emt 0:00:30]} Ne4 {[%emt 0:00:30]} 24. N5c4 {[%emt 0:00:30]} Bh4 {[%emt 0:00:30]} 25. g3 {[%emt 0:00:30]} Bf6 {[%emt 0:00:30]} 26. Ng4 {[%emt 0:00:30]} Bg7 {[%emt 0:00:30]} 27. f4 {[%emt 0:00:30]} Re6 {[%emt 0:00:30]} 28. Nf2 {[%emt 0:00:30]} Rbe8 {[%emt 0:00:30]} 29. Nxe4 {[%emt 0:00:30]} Rxe4 {[%emt 0:00:30]} 30. Rxe4 {[%emt 0:00:30]} Rxe4 {[%emt 0:00:30]} 31. Kf2 {[%emt 0:00:30]} a5 {[%emt 0:00:30]} 32. Nd2 {[%emt 0:00:30]} Re8 {[%emt 0:00:30]} 33. Nc4 {[%emt 0:00:30]} f6 {[%emt 0:00:30]} 34. Ne3 {[%emt 0:00:30]} Kf7 {[%emt 0:00:30]} 35. c4 {[%emt 0:00:30]} f5 {[%emt 0:00:30]} 36. Nd5 {[%emt 0:00:30]} Re4 {[%emt 0:00:30]} 37. Rc1 {[%emt 0:00:30]} Bxd4+ {[%emt 0:00:30]} 38. Bxd4 {[%emt 0:00:30]} Rxd4 {[%emt 0:00:30]} 39. Nxc7 {[%emt 0:00:30]} Rd2+ {[%emt 0:00:00]} 40. Ke3 {[%emt 0:00:30]} Rxh2 {[%emt 0:01:00]} 41. Rb1 {[%emt 0:15:30]} Rg2 {[%emt 0:15:30]} 42. Rxb6 {[%emt 0:00:30]} Rxg3+ {[%emt 0:00:30]} 43. Kd4 {[%emt 0:00:30]} Be4 {[%emt 0:00:30]} 44. Nd5 {[%emt 0:00:30]} Rd3+ {[%emt 0:00:00]} 45. Ke5 {[%emt 0:00:30]} Bxd5 {[%emt 0:00:00]} 46. cxd5 {[%emt 0:00:00]} Re3+ {[%emt 0:00:00]} 47. Kd6 {[%emt 0:01:00]} Re4 {[%emt 0:02:00]} 48. Kc7 {[%emt 0:00:30]} Rxf4 {[%emt 0:00:00]} 49. d6 {[%emt 0:00:30]} Rd4 {[%emt 0:01:00]} 50. Rb5 {[%emt 0:00:30]} Rc4+ {[%emt 0:00:30]} 51. Kd7 {[%emt 0:00:00]} 0-1

[Event "36th Belgrade Trophy 2023"]
[Site "Belgrade"]
[Date "2023.11.26"]
[Round "2.6"]
[White "Atalik, Suat"]
[Black "Zoric, Savo"]
[Result "1-0"]
[ECO "A87"]
[WhiteElo "2427"]
[BlackElo "1952"]
[Annotator "RC"]
[PlyCount "87"]
[EventDate "2023.10.23"]
[EventType "swiss"]
[EventCountry "SRB"]
[SourceTitle "playchess.com"]
[Source "ChessBase"]
[SourceQuality "1"]
[TimeControl "40/5400+30:900+30"]

1. d4 {[%emt 0:00:08]} f5 {[%emt 0:00:06]} 2. g3 {[%emt 0:00:36]} Nf6 {[%emt 0:00:06]} 3. Bg2 {[%emt 0:00:54]} g6 {[%emt 0:01:01]} 4. Nf3 {[%emt 0:00:47]} Bg7 {[%emt 0:00:07]} 5. O-O {[%emt 0:00:14]} O-O {[%emt 0:00:05]} 6. c4 {[%emt 0:00:19]} d6 {[%emt 0:00:06]} 7. Nc3 {[%emt 0:00:39]} Qe8 {[%emt 0:00:15]} 8. b4 {[%emt 0:00:26]} c6 {[%emt 0:17:46]} 9. Ba3 {[%emt 0:02:35]} Na6 {[%emt 0:02:37]} 10. b5 {[%emt 0:03:01]} Nc7 {[%emt 0:02:30]} 11. Rb1 {[%emt 0:07:21]} cxb5 {[%emt 0:14:20]} 12. Nxb5 {[%emt 0:01:59]} Nxb5 {[%emt 0:00:44]} 13. Rxb5 {[%emt 0:00:08]} Ne4 {[%emt 0:00:16]} 14. Qd3 {[%emt 1:18:23]} b6 {[%emt 0:57:31]} 15. Ng5 {[%emt 0:00:30]} Bd7 {[%emt 0:00:00]} 16. Nxe4 {[%emt 0:00:00]} fxe4 {[%emt 0:00:00]} 17. Bxe4 {[%emt 0:00:00]} Bxb5 {[%emt 0:01:30]} 18. Bxa8 {[%emt 0:00:00]} Qxa8 {[%emt 0:00:00]} 19. cxb5 {[%emt 0:00:00]} Qd5 {[%emt 0:00:00]} 20. Rc1 {[%emt 0:00:00]} Qxa2 {[%emt 0:01:30]} 21. Qc4+ {[%emt 0:00:00]} Qxc4 {[%emt 0:00:00]} 22. Rxc4 {[%emt 0:00:00]} Rf5 {[%emt 0:00:00]} 23. Rb4 {[%emt 0:04:00]} Kf7 {[%emt 0:00:00]} 24. Bb2 {[%emt 0:00:00]} Bh6 {[%emt 0:02:00]} 25. f4 {[%emt 0:00:00]} Ke6 {[%emt 0:00:00]} 26. e4 {[%emt 0:00:00]} Rf8 {[%emt 0:00:00]} 27. d5+ {[%emt 0:00:00]} Kd7 {[%emt 0:00:00]} 28. Ra4 {[%emt 0:00:00]} Ra8 {[%emt 0:00:00]} 29. Bd4 {[%emt 0:00:00]} Kc7 {[%emt 0:00:00]} 30. Kg2 {[%emt 0:00:00]} Kb7 {[%emt 0:00:00]} 31. Rc4 {[%emt 0:00:00]} Rg8 {[%emt 0:03:30]} 32. Kf3 {[%emt 0:00:00]} g5 {[%emt 0:00:00]} 33. Rc2 {[%emt 0:00:00]} Bg7 {[%emt 0:00:00]} 34. Bxg7 {[%emt 0:00:00]} Rxg7 {[%emt 0:00:00]} 35. f5 {[%emt 0:00:00]} Rf7 {[%emt 0:00:00]} 36. g4 {[%emt 0:00:00]} a6 {[%emt 0:00:00]} 37. bxa6+ {[%emt 0:00:00]} Kxa6 {[%emt 0:00:00]} 38. e5 {[%emt 0:00:00]} Kb7 {[%emt 0:00:32]} 39. Ke4 {[%emt 0:00:53]} dxe5 {[%emt 0:00:32]} 40. Kxe5 {[%emt 0:00:00]} Rf6 {[%emt 0:00:00]} 41. h4 {[%emt 0:03:32]} h6 {[%emt 0:00:22]} 42. hxg5 {[%emt 0:01:42]} hxg5 {[%emt 0:00:06]} 43. Kd4 {[%emt 0:00:25]} Rh6 {[%emt 0:01:46]} 44. Re2 {[%emt 0:00:25]} 1-0

[Event "36th Belgrade Trophy 2023"]
[Site "Belgrade"]
[Date "2023.11.26"]
[Round "2.7"]
[White "Oliinyk, Serafim"]
[Black "Pap, Misa"]
[Result "0-1"]
[ECO "C47"]
[WhiteElo "1990"]
[BlackElo "2426"]
[Annotator "RC"]
[PlyCount "144"]
[EventDate "2023.10.23"]
[EventType "swiss"]
[EventCountry "SRB"]
[SourceTitle "playchess.com"]
[Source "ChessBase"]
[SourceQuality "1"]
[TimeControl "40/5400+30:900+30"]

1. e4 {[%emt 0:02:45]} e5 {[%emt 0:01:01]} 2. Nf3 {[%emt 0:00:52]} Nc6 {[%emt 0:00:06]} 3. Nc3 {[%emt 0:00:06]} Nf6 {[%emt 0:00:29]} 4. d4 {[%emt 0:00:14]} exd4 {[%emt 0:00:05]} 5. Nxd4 {[%emt 0:00:03]} Bc5 {[%emt 0:02:11]} 6. Be3 {[%emt 0:00:24]} Bb6 {[%emt 0:00:51]} 7. Qd2 {[%emt 0:00:37]} Ng4 {[%emt 0:01:42]} 8. Nf5 {[%emt 0:01:23]} Nxe3 {[%emt 0:01:44]} 9. Nxe3 {[%emt 0:00:12]} O-O {[%emt 0:03:13]} 10. O-O-O {[%emt 0:01:22]} d6 {[%emt 0:11:18]} 11. Ned5 {[%emt 0:01:56]} Be6 {[%emt 0:05:50]} 12. h4 {[%emt 0:05:37]} Ba5 {[%emt 0:03:57]} 13. Qf4 {[%emt 0:02:27]} Ne5 {[%emt 0:09:59]} 14. Qg3 {[%emt 0:19:51]} c6 {[%emt 0:06:00]} 15. Nf4 {[%emt 0:01:43]} Qf6 {[%emt 0:08:47]} 16. Nfe2 {[%emt 0:08:58]} Ng4 {[%emt 0:08:41]} 17. f3 {[%emt 0:13:14]} Ne3 {[%emt 0:06:48]} 18. Rd3 {[%emt 0:04:55]} Nxf1 {[%emt 0:02:33]} 19. Rxf1 {[%emt 0:00:02]} Bc4 {[%emt 0:00:09]} 20. Rxd6 {[%emt 0:07:41]} Bc7 {[%emt 0:03:15]} 21. Rxf6 {[%emt 0:00:35]} Bxg3 {[%emt 0:00:05]} 22. Rf5 {[%emt 0:00:25]} Bxh4 {[%emt 0:00:21]} 23. Rh5 {[%emt 0:01:37]} Be7 {[%emt 0:01:21]} 24. Rd1 {[%emt 0:01:13]} Rad8 {[%emt 0:00:18]} 25. Rhh1 {[%emt 0:00:33]} Bc5 {[%emt 0:01:02]} 26. Kb1 {[%emt 0:02:57]} g6 {[%emt 0:01:50]} 27. b3 {[%emt 0:00:58]} Ba6 {[%emt 0:00:30]} 28. Nc1 {[%emt 0:02:16]} h5 {[%emt 0:05:03]} 29. Nd3 {[%emt 0:00:23]} Bd4 {[%emt 0:00:11]} 30. Na4 {[%emt 0:02:00]} b6 {[%emt 0:00:15]} 31. c4 {[%emt 0:02:40]} Bb7 {[%emt 0:06:26]} 32. Kc2 {[%emt 0:01:01]} Kg7 {[%emt 0:00:30]} 33. Nc3 {[%emt 0:00:33]} a6 {[%emt 0:01:17]} 34. a4 {[%emt 0:04:39]} a5 {[%emt 0:00:13]} 35. Ne2 {[%emt 0:02:46]} Be3 {[%emt 0:01:00]} 36. Nc3 {[%emt 0:01:50]} Rfe8 {[%emt 0:01:45]} 37. Rhe1 {[%emt 0:00:30]} Bd4 {[%emt 0:00:28]} 38. Ne2 {[%emt 0:00:42]} Bf6 {[%emt 0:00:05]} 39. Nc3 {[%emt 0:01:23]} Bh4 {[%emt 0:00:44]} 40. Rh1 {[%emt 0:00:00]} Be7 {[%emt 0:00:00]} 41. Ne2 {[%emt 0:03:27]} Bd6 {[%emt 0:03:34]} 42. Rhe1 {[%emt 0:01:12]} Bc8 {[%emt 0:01:56]} 43. Nef4 {[%emt 0:02:38]} Bc7 {[%emt 0:01:01]} 44. Ne2 {[%emt 0:00:42]} f5 {[%emt 0:04:55]} 45. Nc3 {[%emt 0:01:30]} fxe4 {[%emt 0:00:17]} 46. Nxe4 {[%emt 0:02:39]} Bf5 {[%emt 0:00:05]} 47. Kc3 {[%emt 0:01:43]} c5 {[%emt 0:02:25]} 48. Kc2 {[%emt 0:01:04]} Rd4 {[%emt 0:04:11]} 49. Ndf2 {[%emt 0:08:46]} Bg3 {[%emt 0:04:27]} 50. Kc3 {[%emt 0:01:45]} Bxe4 {[%emt 0:01:43]} 51. Nxe4 {[%emt 0:01:39]} Bxe1+ {[%emt 0:00:26]} 52. Rxe1 {[%emt 0:00:01]} g5 {[%emt 0:01:08]} 53. Kc2 {[%emt 0:00:52]} Kg6 {[%emt 0:00:09]} 54. Re2 {[%emt 0:00:18]} g4 {[%emt 0:01:03]} 55. Re1 {[%emt 0:00:18]} h4 {[%emt 0:01:38]} 56. Rh1 {[%emt 0:00:47]} gxf3 {[%emt 0:00:21]} 57. gxf3 {[%emt 0:00:05]} Rexe4 {[%emt 0:01:07]} 58. fxe4 {[%emt 0:00:07]} Rxe4 {[%emt 0:00:13]} 59. Kd3 {[%emt 0:01:17]} Kf5 {[%emt 0:00:42]} 60. Rg1 {[%emt 0:00:44]} Rg4 {[%emt 0:01:17]} 61. Rf1+ {[%emt 0:00:04]} Rf4 {[%emt 0:00:13]} 62. Rh1 {[%emt 0:00:19]} Kg4 {[%emt 0:00:37]} 63. Rg1+ {[%emt 0:00:11]} Kf3 {[%emt 0:00:21]} 64. Rf1+ {[%emt 0:01:27]} Kg3 {[%emt 0:00:04]} 65. Rg1+ {[%emt 0:00:03]} Kf2 {[%emt 0:00:04]} 66. Rg6 {[%emt 0:00:17]} h3 {[%emt 0:00:19]} 67. Rh6 {[%emt 0:00:18]} Rf3+ {[%emt 0:00:07]} 68. Kd2 {[%emt 0:00:38]} Rxb3 {[%emt 0:00:28]} 69. Rf6+ {[%emt 0:00:02]} Kg2 {[%emt 0:00:06]} 70. Ke2 {[%emt 0:00:06]} h2 {[%emt 0:00:40]} 71. Rf2+ {[%emt 0:00:10]} Kg3 {[%emt 0:00:11]} 72. Rf1 {[%emt 0:00:01]} Rc3 {[%emt 0:00:59]} 0-1

[Event "36th Belgrade Trophy 2023"]
[Site "Belgrade"]
[Date "2023.11.26"]
[Round "2.8"]
[White "Antic, Dejan"]
[Black "Zmijanac, Dusko"]
[Result "1-0"]
[ECO "D15"]
[WhiteElo "2362"]
[BlackElo "1938"]
[Annotator "RC"]
[PlyCount "45"]
[EventDate "2023.10.23"]
[EventType "swiss"]
[EventCountry "SRB"]
[SourceTitle "playchess.com"]
[Source "ChessBase"]
[SourceQuality "1"]
[TimeControl "40/5400+30:900+30"]

1. d4 {[%emt 0:00:05]} d5 {[%emt 0:02:02]} 2. c4 {[%emt 0:00:16]} c6 {[%emt 0:00:20]} 3. Nf3 {[%emt 0:00:42]} Nf6 {[%emt 0:00:25]} 4. Nc3 {[%emt 0:00:26]} a6 {[%emt 0:00:52]} 5. a4 {[%emt 0:00:51]} g6 {[%emt 0:05:58]} 6. a5 {[%emt 0:08:52]} Bg7 {[%emt 0:00:31]} 7. e3 {[%emt 0:03:28]} O-O {[%emt 0:01:40]} 8. Be2 {[%emt 0:00:56]} Bg4 {[%emt 0:03:29]} 9. Qb3 {[%emt 0:03:35]} Ra7 {[%emt 0:00:12]} 10. O-O {[%emt 0:03:07]} e6 {[%emt 0:00:29]} 11. h3 {[%emt 0:02:50]} Bxf3 {[%emt 0:00:11]} 12. Bxf3 {[%emt 0:00:06]} Nbd7 {[%emt 0:00:34]} 13. Rd1 {[%emt 0:01:39]} b5 {[%emt 0:10:16]} 14. axb6 {[%emt 0:01:07]} Qxb6 {[%emt 0:03:21]} 15. Qxb6 {[%emt 0:04:34]} Nxb6 {[%emt 0:00:06]} 16. c5 {[%emt 0:01:43]} Nbd7 {[%emt 0:00:06]} 17. Be2 {[%emt 0:00:36]} Rfa8 {[%emt 0:00:04]} 18. Bd2 {[%emt 0:03:29]} Ne8 {[%emt 0:00:31]} 19. Na4 {[%emt 0:03:01]} e5 {[%emt 0:04:47]} 20. Ba5 {[%emt 0:02:50]} Rb8 {[%emt 0:13:07]} 21. Nb6 {[%emt 0:05:45]} Kf8 {[%emt 0:01:12]} 22. Bxa6 {[%emt 0:03:02]} Ke7 {[%emt 0:00:38]} 23. Nc8+ {[%emt 0:00:52]} 1-0

[Event "36th Belgrade Trophy 2023"]
[Site "Belgrade"]
[Date "2023.11.26"]
[Round "2.9"]
[White "Ivanovic, Nikola"]
[Black "Milosevic, Milos"]
[Result "0-1"]
[ECO "D85"]
[WhiteElo "1980"]
[BlackElo "2362"]
[Annotator "RC"]
[PlyCount "74"]
[EventDate "2023.10.23"]
[EventType "swiss"]
[EventCountry "SRB"]
[SourceTitle "playchess.com"]
[Source "ChessBase"]
[SourceQuality "1"]
[TimeControl "40/5400+30:900+30"]

1. Nf3 {[%emt 0:00:08]} Nf6 {[%emt 0:15:53]} 2. d4 {[%emt 0:00:50]} g6 {[%emt 0:00:28]} 3. c4 {[%emt 0:00:15]} Bg7 {[%emt 1:15:39]} 4. Nc3 {[%emt 0:00:15]} d5 {[%emt 0:00:30]} 5. cxd5 {[%emt 1:31:32]} Nxd5 {[%emt 0:00:00]} 6. e4 {[%emt 0:00:00]} Nxc3 {[%emt 0:01:00]} 7. bxc3 {[%emt 0:01:00]} c5 {[%emt 0:00:30]} 8. Rb1 {[%emt 0:00:00]} O-O {[%emt 0:00:30]} 9. Be2 {[%emt 0:01:00]} b6 {[%emt 0:00:30]} 10. O-O {[%emt 0:00:00]} Bb7 {[%emt 0:00:00]} 11. Qd3 {[%emt 0:00:00]} Ba6 {[%emt 0:00:00]} 12. Qe3 {[%emt 0:00:00]} Bxe2 {[%emt 0:01:30]} 13. Qxe2 {[%emt 0:00:00]} Qc7 {[%emt 0:00:30]} 14. Be3 {[%emt 0:02:30]} Nd7 {[%emt 0:00:30]} 15. e5 {[%emt 0:00:30]} Qc6 {[%emt 0:00:30]} 16. Rfd1 {[%emt 0:00:30]} e6 {[%emt 0:00:30]} 17. h4 {[%emt 0:00:30]} Rfc8 {[%emt 0:00:30]} 18. Rb2 {[%emt 0:00:30]} cxd4 {[%emt 0:00:30]} 19. cxd4 {[%emt 0:00:30]} Qe4 {[%emt 0:00:30]} 20. Rbd2 {[%emt 0:00:30]} h6 {[%emt 0:00:30]} 21. Qb5 {[%emt 0:00:30]} Rc7 {[%emt 0:00:30]} 22. d5 {[%emt 0:00:00]} exd5 {[%emt 0:00:30]} 23. Rxd5 {[%emt 0:01:00]} Nf8 {[%emt 0:00:30]} 24. R1d4 {[%emt 0:00:00]} Qf5 {[%emt 0:00:30]} 25. Qd3 {[%emt 0:00:00]} Qe6 {[%emt 0:00:30]} 26. a4 {[%emt 0:01:30]} Rac8 {[%emt 0:00:30]} 27. a5 {[%emt 0:00:30]} bxa5 {[%emt 0:00:00]} 28. Rxa5 {[%emt 0:00:30]} Nd7 {[%emt 0:01:00]} 29. Rd6 {[%emt 0:00:30]} Qe7 {[%emt 0:00:30]} 30. Qd5 {[%emt 0:00:30]} Rc1+ {[%emt 0:00:30]} 31. Bxc1 {[%emt 0:00:00]} Rxc1+ {[%emt 0:00:30]} 32. Kh2 {[%emt 0:00:00]} Bxe5+ {[%emt 0:00:30]} 33. g3 {[%emt 0:00:00]} Bxd6 {[%emt 0:00:30]} 34. Rxa7 {[%emt 0:02:00]} Rc2 {[%emt 0:00:00]} 35. Kg2 {[%emt 0:00:00]} Rxf2+ {[%emt 0:00:00]} 36. Kxf2 {[%emt 0:00:00]} Bc5+ {[%emt 0:00:00]} 37. Kf1 {[%emt 0:00:00]} Bxa7 {[%emt 0:02:00]} 0-1

[Event "36th Belgrade Trophy 2023"]
[Site "Belgrade"]
[Date "2023.11.26"]
[Round "2.10"]
[White "Mezentsev, Ivan"]
[Black "Petrovic, Borislav I"]
[Result "1-0"]
[ECO "E42"]
[WhiteElo "2362"]
[BlackElo "1925"]
[Annotator "RC"]
[PlyCount "63"]
[EventDate "2023.10.23"]
[EventType "swiss"]
[EventCountry "SRB"]
[SourceTitle "playchess.com"]
[Source "ChessBase"]
[SourceQuality "1"]
[TimeControl "40/5400+30:900+30"]

1. d4 {[%emt 1:31:00]} Nf6 {[%emt 1:31:00]} 2. c4 {[%emt 0:00:30]} e6 {[%emt 0:00:30]} 3. Nc3 {[%emt 0:00:00]} Bb4 {[%emt 0:00:00]} 4. e3 b6 {[%emt 0:00:00]} 5. Nge2 c5 {[%emt 0:00:00]} 6. a3 cxd4 {[%emt 0:02:00]} 7. exd4 {[%emt 0:02:30]} Be7 {[%emt 0:00:30]} 8. d5 {[%emt 0:00:30]} exd5 {[%emt 0:00:30]} 9. cxd5 {[%emt 0:00:30]} Bc5 {[%emt 0:00:30]} 10. b4 {[%emt 0:00:30]} Bd6 {[%emt 0:00:30]} 11. g3 {[%emt 0:00:30]} a5 {[%emt 0:00:00]} 12. b5 Qc7 {[%emt 0:00:00]} 13. Bg2 Be5 {[%emt 0:01:30]} 14. Bb2 {[%emt 0:00:00]} d6 {[%emt 0:00:30]} 15. Rc1 {[%emt 0:02:00]} Qd8 {[%emt 0:00:00]} 16. O-O O-O {[%emt 0:00:00]} 17. Nd4 Bxd4 {[%emt 0:01:30]} 18. Qxd4 {[%emt 0:01:30]} Nbd7 {[%emt 0:00:30]} 19. Ne4 {[%emt 0:00:30]} Nc5 {[%emt 0:00:30]} 20. Nxc5 {[%emt 0:00:30]} bxc5 {[%emt 0:00:30]} 21. Qf4 {[%emt 0:00:30]} Bb7 {[%emt 0:00:30]} 22. a4 {[%emt 0:00:30]} Rb8 {[%emt 0:00:00]} 23. Rfd1 Re8 {[%emt 0:00:00]} 24. g4 Re2 {[%emt 0:01:30]} 25. Bc3 {[%emt 0:01:30]} Qe7 {[%emt 0:00:00]} 26. Bf3 Ra2 {[%emt 0:00:16]} 27. g5 Nd7 {[%emt 0:01:14]} 28. Re1 {[%emt 0:00:00]} Qf8 {[%emt 0:00:00]} 29. Be4 Nb6 {[%emt 0:00:28]} 30. Qf5 Qc8 {[%emt 0:01:02]} 31. Qxh7+ {[%emt 0:00:00]} Kf8 {[%emt 0:00:30]} 32. Qxg7+ {[%emt 0:00:00]} 1-0

[Event "36th Belgrade Trophy 2023"]
[Site "Belgrade"]
[Date "2023.11.26"]
[Round "2.11"]
[White "Enkhnar, Enkhbaatar"]
[Black "Milutinovic, Dejan D"]
[Result "1-0"]
[ECO "A15"]
[WhiteElo "2327"]
[BlackElo "1907"]
[Annotator "RC"]
[PlyCount "109"]
[EventDate "2023.10.23"]
[EventType "swiss"]
[EventCountry "SRB"]
[SourceTitle "playchess.com"]
[Source "ChessBase"]
[SourceQuality "1"]
[TimeControl "40/5400+30:900+30"]

1. d4 {[%emt 1:31:00]} d6 {[%emt 0:01:52]} 2. Nf3 {[%emt 0:00:00]} Nf6 {[%emt 0:00:45]} 3. c4 e6 {[%emt 1:29:23]} 4. g3 {[%emt 0:01:30]} Nbd7 {[%emt 0:00:30]} 5. Bg2 {[%emt 0:00:30]} Be7 {[%emt 0:00:30]} 6. O-O {[%emt 0:00:30]} O-O {[%emt 0:00:30]} 7. Nc3 {[%emt 0:00:30]} c6 {[%emt 0:00:30]} 8. Qc2 {[%emt 0:00:30]} Qc7 {[%emt 0:00:00]} 9. Rd1 a5 {[%emt 0:00:00]} 10. b3 Rd8 {[%emt 0:01:30]} 11. Bb2 {[%emt 0:01:30]} Nf8 {[%emt 0:00:30]} 12. Rac1 {[%emt 0:00:30]} Ng6 {[%emt 0:00:30]} 13. Na4 {[%emt 0:00:30]} c5 {[%emt 0:00:30]} 14. Nc3 {[%emt 0:00:30]} Bd7 {[%emt 0:00:30]} 15. a4 {[%emt 0:00:30]} Bc6 {[%emt 0:00:00]} 16. e4 e5 {[%emt 0:00:00]} 17. dxc5 dxc5 {[%emt 0:01:30]} 18. Nd5 {[%emt 0:01:30]} Bxd5 {[%emt 0:00:30]} 19. exd5 {[%emt 0:00:30]} Bd6 {[%emt 0:00:30]} 20. Re1 {[%emt 0:00:30]} Re8 {[%emt 0:00:30]} 21. Re2 {[%emt 0:00:30]} Re7 {[%emt 0:00:30]} 22. Rce1 {[%emt 0:00:30]} Rae8 {[%emt 0:00:30]} 23. Ng5 {[%emt 0:00:30]} Nf8 {[%emt 0:00:30]} 24. Bc1 {[%emt 0:00:30]} N8d7 {[%emt 0:00:30]} 25. Nf3 {[%emt 0:00:30]} Rf8 {[%emt 0:00:30]} 26. Nh4 {[%emt 0:00:30]} g6 {[%emt 0:00:00]} 27. Bh6 {[%emt 0:00:00]} Ra8 {[%emt 0:00:00]} 28. Bc1 Ne8 {[%emt 0:01:30]} 29. f4 {[%emt 0:01:30]} f6 {[%emt 0:00:30]} 30. Bh3 {[%emt 0:00:30]} Ng7 {[%emt 0:00:30]} 31. Be6+ {[%emt 0:00:30]} Nxe6 {[%emt 0:00:30]} 32. dxe6 {[%emt 0:00:30]} Nf8 {[%emt 0:00:30]} 33. f5 {[%emt 0:00:30]} gxf5 {[%emt 0:00:00]} 34. Nxf5 Rxe6 {[%emt 0:01:00]} 35. Re4 {[%emt 0:01:00]} Ng6 {[%emt 0:00:00]} 36. Rg4 Kh8 {[%emt 0:00:00]} 37. h4 Bf8 {[%emt 0:01:30]} 38. Bh6 {[%emt 0:01:30]} Bxh6 {[%emt 0:00:00]} 39. Nxh6 Rf8 {[%emt 0:01:00]} 40. Nf5 {[%emt 0:01:00]} Rg8 {[%emt 0:00:30]} 41. Qe4 {[%emt 0:15:30]} Ne7 {[%emt 0:15:30]} 42. Rxg8+ {[%emt 0:00:30]} Nxg8 {[%emt 0:00:30]} 43. Rd1 {[%emt 0:00:30]} Ne7 {[%emt 0:00:30]} 44. Nh6 {[%emt 0:00:00]} Qc8 45. Rd8+ {[%emt 0:01:00]} Qxd8 {[%emt 0:01:00]} 46. Nf7+ {[%emt 0:00:30]} Kg7 {[%emt 0:00:30]} 47. Nxd8 {[%emt 0:00:30]} Rd6 {[%emt 0:00:30]} 48. Qxb7 {[%emt 0:00:30]} Kf8 {[%emt 0:00:30]} 49. Qa8 {[%emt 0:00:30]} Rd1+ {[%emt 0:00:30]} 50. Kf2 {[%emt 0:00:30]} Nf5 {[%emt 0:00:30]} 51. Nc6+ {[%emt 0:00:30]} Kg7 {[%emt 0:00:00]} 52. Qa7+ Kh6 {[%emt 0:00:00]} 53. Qf7 Rd2+ {[%emt 0:00:00]} 54. Ke1 Rd6 {[%emt 0:00:00]} 55. Nxe5 {[%emt 0:02:00]} 1-0